{"text_format":"3","workbook":"xlsx","n_sheets":1,"sheets":["Лист1"],"read":"whole","date_system":"1900"}

{"sheet":"Лист1","index":0,"n_rows":26,"n_cols":34,"rows_kept":26,"merged":[[0,0,4,0],[0,1,4,1],[0,2,0,9],[0,10,0,19],[0,20,0,25],[0,26,0,31],[0,32,5,32],[0,33,3,33],[1,2,1,9],[1,10,1,19],[1,20,1,25],[1,26,1,31],[2,3,2,4],[2,5,2,7],[2,8,2,9],[2,10,2,11],[2,12,2,13],[2,14,2,17],[2,18,2,19],[2,21,2,22],[2,23,2,24],[2,27,2,28],[2,29,2,30],[3,3,3,4],[3,5,3,7],[3,8,3,9],[3,10,3,11],[3,12,3,13],[3,14,3,17],[3,18,3,19],[3,21,3,22],[3,23,3,24],[3,27,3,28],[3,29,3,30],[5,0,5,1],[5,2,5,9],[5,10,5,19],[5,20,5,25],[5,26,5,31],[7,0,7,1],[7,2,7,9],[7,10,7,19],[7,20,7,25],[7,26,7,31],[8,0,10,0],[11,0,11,1],[11,2,11,9],[11,10,11,19],[11,20,11,25],[11,26,11,31],[12,0,14,0],[15,0,15,1],[15,2,15,9],[15,10,15,19],[15,20,15,25],[15,26,15,31],[16,0,18,0]]}
["Наименование компетенции","Технологии развития городов и территорий","Модуль А -Исследование, анализ, обработка данных лазерного сканирования и построение 3D модели ",{"$nulls":7},"Модуль Б –  Прокладка инженерных коммуникаций на территории объекта в рамках проекта цифрового двойника ",{"$nulls":9},"Модуль В -Оформление",{"$nulls":5},"Модуль Г -Презентация"]
[null,null,"Инвариант",{"$nulls":7},"Вариатив",{"$nulls":9},"Инвариант",{"$nulls":5},"Инвариант"]
[null,null,"Профстандарт: 16.011 Специалист по эксплуатации гражданских зданий. Зарегистрировано в Министерстве юстиции Российской Федерации 28 августа 2019 года, регистрационный N 55766.","Профстандарт: 10.008 Архитектор, утверждён приказом Министерства труда и социальной защиты Российской Федерации от 6 апреля 2022 года №202н",null,"Профстандарт: 06.015 «Специалист по информационным системам», который утверждён приказом Министерства труда и социальной защиты Российской Федерации от 13.07.2023 №586н",null,null,"Профстандарт: 10.018 «Специалист в области аэрофотогеодезии». Утверждён приказом Министерства труда и социальной защиты Российской Федерации от 24.03.2022 №169н.",null,"Профстандарт: 16.011 Специалист по эксплуатации гражданских зданий. Зарегистрировано в Министерстве юстиции Российской Федерации 28 августа 2019 года, регистрационный N 55766.",null,"Профстандарт: 10.008 Архитектор, утверждён приказом Министерства труда и социальной защиты Российской Федерации от 6 апреля 2022 года №202н",null,"Профстандарт: 06.015 «Специалист по информационным системам», который утверждён приказом Министерства труда и социальной защиты Российской Федерации от 13.07.2023 №586н",{"$nulls":3},"Профстандарт: 10.018 «Специалист в области аэрофотогеодезии». Утверждён приказом Министерства труда и социальной защиты Российской Федерации от 24.03.2022 №169н.",null,"Профстандарт: 16.011 Специалист по эксплуатации гражданских зданий. Зарегистрировано в Министерстве юстиции Российской Федерации 28 августа 2019 года, регистрационный N 55766.","Профстандарт: 10.008 Архитектор, утверждён приказом Министерства труда и социальной защиты Российской Федерации от 6 апреля 2022 года №202н",null,"Профстандарт: 06.015 «Специалист по информационным системам», который утверждён приказом Министерства труда и социальной защиты Российской Федерации от 13.07.2023 №586н",null,"Профстандарт: 10.018 «Специалист в области аэрофотогеодезии». Утверждён приказом Министерства труда и социальной защиты Российской Федерации от 24.03.2022 №169н.","Профстандарт: 16.011 Специалист по эксплуатации гражданских зданий. Зарегистрировано в Министерстве юстиции Российской Федерации 28 августа 2019 года, регистрационный N 55766.","Профстандарт: 10.008 Архитектор, утверждён приказом Министерства труда и социальной защиты Российской Федерации от 6 апреля 2022 года №202н",null,"Профстандарт: 06.015 «Специалист по информационным системам», который утверждён приказом Министерства труда и социальной защиты Российской Федерации от 13.07.2023 №586н",null,"Профстандарт: 10.018 «Специалист в области аэрофотогеодезии». Утверждён приказом Министерства труда и социальной защиты Российской Федерации от 24.03.2022 №169н."]
[null,null,"ОТФ 1\nОрганизация мероприятий по содержанию помещений гражданских зданий и территории","ОТФ 1 Разработка отдельных архитектурных, в том числе объемных и планировочных, решений и оформление архитектурного раздела проектной документации объектов капитального строительства",null,"ОТФ 1\nТехническая поддержка процессов создания (модификации) и сопровождения ИС, автоматизирующих задачи организационного управления и бизнес-процессы",null,null,"ОТФ N\nФотограмметрическая обработка материалов аэрокосмических и наземных съемок с целью создания различных видов пространственных данных",null,"ОТФ 1\nОрганизация мероприятий по содержанию помещений гражданских зданий и территории",null,"ОТФ 1 Разработка отдельных архитектурных, в том числе объемных и планировочных, решений и оформление архитектурного раздела проектной документации объектов капитального строительства",null,"ОТФ 1\nТехническая поддержка процессов создания (модификации) и сопровождения ИС, автоматизирующих задачи организационного управления и бизнес-процессы",{"$nulls":3},"ОТФ N\nФотограмметрическая обработка материалов аэрокосмических и наземных съемок с целью создания различных видов пространственных данных",null,"ОТФ 1\nОрганизация мероприятий по содержанию помещений гражданских зданий и территории","ОТФ 1 Разработка отдельных архитектурных, в том числе объемных и планировочных, решений и оформление архитектурного раздела проектной документации объектов капитального строительства",null,"ОТФ 1\nТехническая поддержка процессов создания (модификации) и сопровождения ИС, автоматизирующих задачи организационного управления и бизнес-процессы",null,"ОТФ N\nФотограмметрическая обработка материалов аэрокосмических и наземных съемок с целью создания различных видов пространственных данных","ОТФ 1\nОрганизация мероприятий по содержанию помещений гражданских зданий и территории","ОТФ 1 Разработка отдельных архитектурных, в том числе объемных и планировочных, решений и оформление архитектурного раздела проектной документации объектов капитального строительства",null,"ОТФ 1\nТехническая поддержка процессов создания (модификации) и сопровождения ИС, автоматизирующих задачи организационного управления и бизнес-процессы",null,"ОТФ N\nФотограмметрическая обработка материалов аэрокосмических и наземных съемок с целью создания различных видов пространственных данных"]
[null,null,"ТФ 1\nA/02.5 Организация работ по обеспечению надлежащего санитарного состояния зданий общественного назначения","ТФ 1\nА/01.5 Подготовка исходных данных для проектирования, в том числе для разработки отдельных архитектурных, в том числе объемных и планировочных, решений                      ","ТФ 2\nА/03.5 Графическое и текстовое оформление проектной и рабочей документации по разработанным отдельным архитектурным, в том числе объемным и планировочным, решениям","ТФ 1\nА/01.4 Сбор данных для выявления требований к типовой ИС в соответствии с трудовым заданием      ","ТФ 2\nА/07.4 Техническое обеспечение процесса обучения пользователей ИС  ","ТФ 3\nА/15.4 Представление отчетности по статусу конфигурации в соответствии с трудовым заданием","ТФ 1\nA/01.5 Выполнение операций фотограмметрической и стереофотограмметрической обработки результатов наземных и аэрокосмических съемок        ","ТФ 2\nA/02.5 Подготовка сведений для составления отчетных материалов на основе обработки наземных и/или аэрокосмических изображений","ТФ 1\nA/02.5 Организация работ по обеспечению надлежащего санитарного состояния зданий общественного назначения","ТФ 1\n A/03.5 Организация работ по благоустройству территории гражданских зданий","ТФ 1\nА/01.5 Подготовка исходных данных для проектирования, в том числе для разработки отдельных архитектурных, в том числе объемных и планировочных, решений                      ","ТФ 2\nА/03.5 Графическое и текстовое оформление проектной и рабочей документации по разработанным отдельным архитектурным, в том числе объемным и планировочным, решениям","ТФ 1\nА/01.4 Сбор данных для выявления требований к типовой ИС в соответствии с трудовым заданием      ","ТФ 2\nА/07.4 Техническое обеспечение процесса обучения пользователей ИС  ","ТФ 3\nА/15.4 Представление отчетности по статусу конфигурации в соответствии с трудовым заданием","ТФ4\nA/04.4 Модульное тестирование ИС (верификация) в соответствии с трудовым заданием   ","ТФ 1\nA/01.5 Выполнение операций фотограмметрической и стереофотограмметрической обработки результатов наземных и аэрокосмических съемок        ","ТФ 2\nA/02.5 Подготовка сведений для составления отчетных материалов на основе обработки наземных и/или аэрокосмических изображений","ТФ 1\nA/02.5 Организация работ по обеспечению надлежащего санитарного состояния зданий общественного назначения","ТФ 1\nА/01.5 Подготовка исходных данных для проектирования, в том числе для разработки отдельных архитектурных, в том числе объемных и планировочных, решений                      ","ТФ 2\nА/03.5 Графическое и текстовое оформление проектной и рабочей документации по разработанным отдельным архитектурным, в том числе объемным и планировочным, решениям","ТФ 1\nА/01.4 Сбор данных для выявления требований к типовой ИС в соответствии с трудовым заданием      ","ТФ 3\nА/15.4 Представление отчетности по статусу конфигурации в соответствии с трудовым заданием","ТФ 1\nA/01.5 Выполнение операций фотограмметрической и стереофотограмметрической обработки результатов наземных и аэрокосмических съемок        ","ТФ 1\nA/02.5 Организация работ по обеспечению надлежащего санитарного состояния зданий общественного назначения","ТФ 1\nА/01.5 Подготовка исходных данных для проектирования, в том числе для разработки отдельных архитектурных, в том числе объемных и планировочных, решений                      ","ТФ 2\nА/03.5 Графическое и текстовое оформление проектной и рабочей документации по разработанным отдельным архитектурным, в том числе объемным и планировочным, решениям","ТФ 2\nА/07.4 Техническое обеспечение процесса обучения пользователей ИС  ","ТФ 3\nА/15.4 Представление отчетности по статусу конфигурации в соответствии с трудовым заданием","ТФ 2\nA/02.5 Подготовка сведений для составления отчетных материалов на основе обработки наземных и/или аэрокосмических изображений",null,"% ПК, не учтенных в содержании модулей компетенции от общего количества ПК во ФГОС"]
["ФГОС СПО 1 \n08.02.01 Строительство и эксплуатация зданий и сооружений"]
["Вид деятельности 1 Организация видов работ при эксплуатации и реконструкции строительных объектов","ПК 4.1. Организовывать работу по технической эксплуатации зданий и сооружений","учтена",{"$nulls":7},"учтена","учтена",{"$nulls":8},"учтена",{"$nulls":5},"учтена",{"$nulls":5},{"$f":"COUNTIF(C7:AF7,\"учтена\")","v":5}]
["ФГОС СПО 1 \n08.02.15 Информационное моделирование в строительстве"]
["Вид деятельности 1\nвыполнение технического сопровождения информационного моделирования зданий;","ПК 1.1. Адаптировать программные средства в соответствии со стандартами приминения технологий информационного моделирования зданий  ",{"$nulls":3},"учтена","учтена","учтена",{"$nulls":6},"учтена","учтена","учтена","учтена",{"$nulls":5},"учтена","учтена",{"$nulls":4},"учтена","учтена",null,{"$f":"COUNTIF(C9:AF9,\"учтена\")","v":11}]
[null,"ПК 1.2. Сопровождать программные средства в в соответствии со стандартами приминения технологий информационного моделирования зданий  ",{"$nulls":3},"учтена","учтена","учтена",{"$nulls":6},"учтена","учтена","учтена","учтена",{"$nulls":5},"учтена","учтена",{"$nulls":4},"учтена","учтена",null,{"$f":"COUNTIF(C10:AF10,\"учтена\")","v":11}]
[null,"ПК 1.3. Подготовливать среды общих данных в соотвествии с техническим заданием ",{"$nulls":3},"учтена","учтена","учтена",{"$nulls":6},"учтена","учтена","учтена","учтена",{"$nulls":5},"учтена","учтена",{"$nulls":4},"учтена","учтена",null,11]
["ФГОС СПО 2 \n07.02.01 Архитектура"]
["Вид деятельности 1 Проектирование объектов архитектурной среды","ПК 1.1  Подготавливать исходные данные для проектирования, в том числе для разработки отдельных архитектурных и объемно-планировочных решений",null,"учтена","учтена",{"$nulls":7},"учтена","учтена",{"$nulls":7},"учтена","учтена",{"$nulls":4},"учтена","учтена",{"$nulls":3},8]
[null,"ПК 1.2  Разрабатывать отдельные архитектурные и объемно-планировочные решения в составе проектной документации",null,"учтена","учтена",{"$nulls":7},"учтена","учтена",{"$nulls":7},"учтена","учтена",{"$nulls":4},"учтена","учтена",{"$nulls":3},8]
[null,"ПК 1.3 Оформлять графически и текстом проектную документацию по разработанным отдельным архитектурным и объемно-планировочным решениям",null,"учтена","учтена",{"$nulls":7},"учтена","учтена",{"$nulls":7},"учтена","учтена",{"$nulls":4},"учтена","учтена",{"$nulls":3},8]
["ФГОС СПО 2 \n21.02.07 Аэрофотогеодезия"]
["Вид деятельности 1 Проектирование, создание и обработка опорных геодезических сетей","ПК 1.1  Проектировать геодезические сети",{"$nulls":6},"учтена","учтена",{"$nulls":8},"учтена","учтена",{"$nulls":5},"учтена",{"$nulls":5},"учтена",6]
[null,"ПК 1.2  Создавать опорные геодезические сети с помощью оптических, электронных и спутниковых геодезических приборов",{"$nulls":6},"учтена","учтена",{"$nulls":8},"учтена","учтена",{"$nulls":5},"учтена",{"$nulls":5},"учтена",6]
[null,"ПК 1.3 Выполнять предварительную обработку и оценку точности результатов полевых измерений.",{"$nulls":6},"учтена","учтена",{"$nulls":8},"учтена","учтена",{"$nulls":5},"учтена",{"$nulls":5},"учтена",6]
[null,null,{"$f":"COUNTIF(C6:C19,\"учтена\")","v":1},{"$f":"COUNTIF(D6:D19,\"учтена\")","v":3},3,3,3,3,3,3,1,1,3,3,3,3,3,3,3,3,1,3,3,3,3,3,1,3,3,3,3,3]
[null,"% ТФ, учтенных во ФГОС СПО, от общего количества ТФ модуля компетенции"]
[]
["Вывод:","В части основных модулей компетенции","В части вариативных модулей компетенции"]
["1. Содержание всех модулей соответствует \nФГОС СПО","Выбрать один из вариантов:\n1. Соответствует\n(% ТФ модуля, учтенных во ФГОС СПО > 70%);\n2. Частично соответствует\n(% ТФ модуля, учтенных во ФГОС СПО 40...70%);\n3. Не соответствует\n(% ТФ модуля, учтенных во ФГОС СПО < 40%).","Выбрать один из вариантов:\n1. Соответствует\n(% ТФ модуля, учтенных во ФГОС СПО > 70%);\n2. Частично соответствует\n(% ТФ модуля, учтенных во ФГОС СПО 40...70%);\n3. Не соответствует\n(% ТФ модуля, учтенных во ФГОС СПО < 40%)."]
["2. Перечень модулей компетенции, содержание которых не соответствует ФГОС СПО"]
["3. Предложения по учету содержания модулей компетенции (п.2) в образовательных программах по профессиям/ специальностям СПО"]